fUSD/lending_fUSD_20241209
["ID","MTS","AMOUNT","RATE_DAILY","PERIOD"]
[344705614,1733727086608,-709.13,9.999e-05,2]
[344705615,1733727086618,-709.13,9.999e-05,2]
[344705616,1733727086627,-709.13,9.999e-05,2]
[344705617,1733727086637,-709.13,9.999e-05,2]
[344705618,1733727086647,-709.26732139,9.999e-05,2]
[344705619,1733727086656,-505.12,9.999e-05,2]
[344705620,1733727086665,-505.12,9.999e-05,2]
[344705621,1733727086675,-505.12,9.999e-05,2]
[344705622,1733727086684,-505.12,9.999e-05,2]
[344705623,1733727086694,-505.12,9.999e-05,2]
[344705624,1733727086703,-505.12,9.999e-05,2]
[344705625,1733727086712,-505.12,9.999e-05,2]
[344705626,1733727086721,-505.12422754,9.999e-05,2]
[344705627,1733727086731,-500.0,9.999e-05,2]
[344705628,1733727086740,-500.0,9.999e-05,2]
[344705629,1733727086750,-3870.05,9.999e-05,2]
[344705630,1733727086760,-500.0,9.999e-05,2]
[344705631,1733727086769,-3870.05,9.999e-05,2]
[344705632,1733727086781,-457.54,9.999e-05,2]
[344705633,1733727086793,-3870.05,9.999e-05,2]
[344705634,1733727086803,-3870.05,9.999e-05,2]
[344705635,1733727086812,-3870.05,9.999e-05,2]
[344705636,1733727086821,-3870.05,9.999e-05,2]
[344705637,1733727086831,-3870.05,9.999e-05,2]
[344705638,1733727086840,-3870.07305997,9.999e-05,2]
[344705639,1733727086851,-615.74,9.999e-05,2]
[344705640,1733727086861,-615.74,9.999e-05,2]
[344705641,1733727086871,-615.74,9.999e-05,2]
[344705642,1733727086880,-615.74,9.999e-05,2]
[344705643,1733727086890,-615.74,9.999e-05,2]
[344705644,1733727086900,-615.74,9.999e-05,2]
[344705645,1733727086909,-615.74,9.999e-05,2]
[344705646,1733727086919,-615.92296483,9.999e-05,2]
[344705647,1733727086930,-1065.35,9.999e-05,2]
[344705648,1733727086940,-1065.35,9.999e-05,2]
[344705649,1733727086950,-1065.35,9.999e-05,2]
[344705650,1733727086959,-1065.35,9.999e-05,2]
[344705651,1733727086969,-1065.35,9.999e-05,2]
[344705652,1733727086978,-1065.35,9.999e-05,2]
[344705653,1733727086988,-1065.35,9.999e-05,2]
[344705654,1733727086997,-1065.58843099,9.999e-05,2]
[344705655,1733727087007,-500.0,9.999e-05,2]
[344705656,1733727087017,-500.0,9.999e-05,2]
[344705657,1733727087027,-500.0,9.999e-05,2]
[344705658,1733727087037,-3412.79595062,9.999e-05,2]
[344705659,1733727087046,-378.69,9.999e-05,2]
[344705660,1733727087056,-1635.93,9.999e-05,2]
[344705661,1733727087065,-1635.93,9.999e-05,2]
[344705662,1733727087074,-1635.93,9.999e-05,2]
[344705663,1733727087083,-1635.93,9.999e-05,2]
[344705664,1733727087092,-1635.93,9.999e-05,2]
[344705665,1733727087102,-1635.93,9.999e-05,2]
[344705666,1733727087112,-1635.93,9.999e-05,2]
[344705667,1733727087121,-1636.07662156,9.999e-05,2]
[344705668,1733727087130,-665.23,9.999e-05,2]
[344705669,1733727087139,-2348.93,9.999e-05,2]
[344705670,1733727087148,-665.23,9.999e-05,2]
[344705671,1733727087158,-665.23,9.999e-05,2]
[344705672,1733727087167,-2348.93,9.999e-05,2]
[344705673,1733727087176,-665.23,9.999e-05,2]
[344705674,1733727087185,-2348.93,9.999e-05,2]
[344705675,1733727087194,-2348.93,9.999e-05,2]
[344705676,1733727087203,-665.23,9.999e-05,2]
[344705677,1733727087211,-2348.93,9.999e-05,2]
[344705678,1733727087220,-665.39,9.999e-05,2]
[344705679,1733727087229,-2348.93,9.999e-05,2]
[344705680,1733727087239,-2349.11899314,9.999e-05,2]
[344705681,1733727087251,-726.47,9.999e-05,2]
[344705682,1733727087260,-726.47,9.999e-05,2]
[344705683,1733727087269,-726.47,9.999e-05,2]
[344705684,1733727087281,-726.47,9.999e-05,2]
[344705685,1733727087290,-726.62902225,9.999e-05,2]
[344705686,1733727087299,-3039.13,9.999e-05,2]
[344705687,1733727087308,-3039.13,9.999e-05,2]
[344705688,1733727087317,-3039.13,9.999e-05,2]
[344705689,1733727087326,-3039.13,9.999e-05,2]
[344705690,1733727087335,-3039.13,9.999e-05,2]
[344705691,1733727087344,-3039.13,9.999e-05,2]
[344705692,1733727087353,-3039.13,9.999e-05,2]
[344705693,1733727087363,-3039.23951409,9.999e-05,2]
[344705694,1733727087372,-2229.46,9.999e-05,2]
[344705695,1733727087381,-2229.46,9.999e-05,2]
[344705696,1733727087390,-2229.46,9.999e-05,2]
[344705697,1733727087400,-44972.40597684,9.999e-05,2]
[344705698,1733727087409,-682.20923954,9.999e-05,2]
[344705699,1733727087418,-545.73,9.999e-05,2]
[344705700,1733727087427,-545.73,9.999e-05,2]
[344705701,1733727087436,-545.73,9.999e-05,2]
[344705702,1733727087445,-545.73,9.999e-05,2]
[344705703,1733727087454,-545.81268487,9.999e-05,2]
[344705704,1733727087463,-2229.46,9.999e-05,2]
[344705705,1733727087473,-22344.12,9.999e-05,2]
[344705706,1733727087482,-22344.12,9.999e-05,2]
[344705707,1733727087492,-2229.46,9.999e-05,2]
[344705708,1733727087501,-22344.12,9.999e-05,2]
[344705709,1733727087510,-2229.61650227,9.999e-05,2]
[344705710,1733727087520,-22344.12,9.999e-05,2]
[344705711,1733727087536,-22344.12,9.999e-05,2]
[344705712,1733727087546,-22344.12,9.999e-05,2]
[344705713,1733727087555,-22344.12,9.999e-05,2]
[344705714,1733727087565,-22344.28966296,9.999e-05,2]
[344705715,1733727087575,-3198.49,9.999e-05,2]
[344705716,1733727087585,-3198.49,9.999e-05,2]
[344705717,1733727087595,-3198.49,9.999e-05,2]
[344705718,1733727087604,-3198.49,9.999e-05,2]
[344705719,1733727087614,-3198.49,9.999e-05,2]
[344705720,1733727087623,-3198.49,9.999e-05,2]
[344705721,1733727087633,-3198.50269215,9.999e-05,2]
[344705722,1733727087643,-500.0,9.999e-05,2]
[344705723,1733727087652,-500.0,9.999e-05,2]
[344705724,1733727087661,-500.0,9.999e-05,2]
[344705725,1733727087671,-500.0,9.999e-05,2]
[344705726,1733727087680,-500.0,9.999e-05,2]
[344705727,1733727087690,-500.0,9.999e-05,2]
[344705728,1733727087700,-500.0,9.999e-05,2]
[344705729,1733727087710,-384.84,9.999e-05,2]
[344705730,1733727087720,-500.0,9.999e-05,2]
[344705731,1733727087730,-242.5,9.999e-05,2]
[344705732,1733727087740,-500.0,9.999e-05,2]
[344705733,1733727087750,-500.0,9.999e-05,2]
[344705734,1733727087759,-209.74023136,9.999e-05,2]
[344705735,1733727087769,-2021.5,9.999e-05,2]
[344705736,1733727087781,-2021.5,9.999e-05,2]
[344705737,1733727087790,-2021.5,9.999e-05,2]
[344705738,1733727087800,-2021.5,9.999e-05,2]
[344705739,1733727087810,-14745.82,9.999e-05,2]
[344705740,1733727087820,-2021.5,9.999e-05,2]
[344705741,1733727087829,-14745.82,9.999e-05,2]
[344705742,1733727087838,-2021.5,9.999e-05,2]
[344705743,1733727087848,-2021.5,9.999e-05,2]
[344705744,1733727087861,-14745.82,9.999e-05,2]
[344705745,1733727087870,-2021.6273011,9.999e-05,2]
[344705746,1733727087879,-14745.82,9.999e-05,2]
[344705747,1733727087888,-14745.82,9.999e-05,2]
[344705748,1733727087898,-14745.82,9.999e-05,2]
[344705749,1733727087907,-14745.98786113,9.999e-05,2]
[344705750,1733727087917,-9054.83,9.999e-05,2]
[344705751,1733727087927,-9054.83,9.999e-05,2]
[344705752,1733727087937,-9054.83,9.999e-05,2]
[344705753,1733727087946,-9054.83,9.999e-05,2]
[344705754,1733727087956,-9054.83,9.999e-05,2]
[344705755,1733727087966,-9054.83,9.999e-05,2]
[344705756,1733727087975,-9054.90104679,9.999e-05,2]
[344705757,1733727087984,-1343.94,9.999e-05,2]
[344705758,1733727087993,-1343.94,9.999e-05,2]
[344705759,1733727088003,-1343.94,9.999e-05,2]
[344705760,1733727088012,-1343.94,9.999e-05,2]
[344705761,1733727088023,-1343.94,9.999e-05,2]
[344705762,1733727088034,-1343.94,9.999e-05,2]
[344705763,1733727088045,-1344.01,9.999e-05,2]
[344705764,1733727088055,-583.72,9.999e-05,2]
[344705765,1733727088065,-583.72,9.999e-05,2]
[344705766,1733727088074,-3412.79595062,0.0001,2]
[344705767,1733727088084,-44972.40597683,0.0001,2]
[344705768,1733727088094,-682.20923953,0.0001,2]
[344705769,1733727088103,-2049373.52422078,0.0001,2]
[344705771,1733727088655,-6279.00486109,0.0001,2]
[344705772,1733727088667,-3406.78,0.0001,2]
[344705773,1733727088679,-261869.36247837,0.0001,2]
[344705774,1733727088691,-90373.52752315,0.0001,2]
[344705775,1733727088899,-10239.0,9.863e-05,2]
[344705776,1733727088911,-5704.58048671,9.863e-05,2]
[344705777,1733727088936,-3990.09471752,9.863e-05,2]
[344705856,1733728231823,-154.92,7.397e-05,2]
[344705857,1733728231832,-2430.08,8.219e-05,2]
[344705858,1733728231843,-1000.0,8.895e-05,2]
[344705859,1733728231852,-150.0,8.907e-05,2]
[344705860,1733728231862,-318.8,8.935e-05,2]
[344705861,1733728231871,-250.0,8.948e-05,2]
[344705862,1733728231882,-150.0,8.948e-05,2]
[344705863,1733728231891,-495.9,8.995e-05,2]
[344705864,1733728231901,-7733.51999993,9.197e-05,2]
[344705865,1733728232029,-320.37338069,9.197e-05,2]
[344705867,1733728232208,-999.992,9.197e-05,2]
[344705875,1733728237858,-5676.67614949,9.197e-05,2]
[344705876,1733728237870,-6625.16656486,9.197e-05,2]
[344705877,1733728237882,-2544.27190503,9.197e-05,2]
[344705878,1733728237891,-578.0,9.233e-05,2]
[344705879,1733728237900,-250.3711197,9.43e-05,2]
[344705880,1733728237927,-82.6288803,9.43e-05,2]
[344705881,1733728237936,-332.0,9.43e-05,2]
[344705882,1733728237947,-396.988,9.5e-05,2]
[344705883,1733728237957,-167.73,9.505e-05,2]
[344705884,1733728237966,-2500.0,9.7e-05,2]
[344705885,1733728237975,-1000.0,9.7e-05,2]
[344705886,1733728237984,-1000.0,9.763e-05,2]
[344705887,1733728237994,-2500.0,9.763e-05,2]
[344705888,1733728238003,-150.0,9.797e-05,2]
[344705889,1733728238012,-3641.33775298,9.798e-05,2]
[344705890,1733728238025,-9814.4,9.798e-05,2]
[344705891,1733728238036,-1560.58,9.798e-05,2]
[344705892,1733728238050,-2167.948725,9.798e-05,2]
[344705893,1733728238062,-1018.0,9.798e-05,2]
[344705922,1733728239829,-11448.5272809,9.798e-05,2]
[344705923,1733728239960,-19290.20624112,9.798e-05,2]
[344705924,1733728239970,-464.15754265,9.863e-05,2]
[344705925,1733728239980,-500.0,9.863e-05,2]
[344705926,1733728239990,-500.0,9.863e-05,2]
[344705927,1733728240000,-190.15,9.863e-05,2]
[344705928,1733728240010,-500.0,9.863e-05,2]
[344705929,1733728240019,-500.0,9.863e-05,2]
[344705930,1733728240029,-500.0,9.863e-05,2]
[344705931,1733728240044,-500.0,9.863e-05,2]
[344705932,1733728240062,-500.0,9.863e-05,2]
[344705933,1733728240073,-500.0,9.863e-05,2]
[344705934,1733728240083,-500.0,9.863e-05,2]
[344705935,1733728240098,-500.0,9.863e-05,2]
[344705936,1733728240108,-500.0,9.863e-05,2]
[344705937,1733728240118,-500.0,9.863e-05,2]
[344705938,1733728240129,-500.0,9.863e-05,2]
[344705939,1733728240138,-500.0,9.863e-05,2]
[344705940,1733728240148,-500.0,9.863e-05,2]
[344705941,1733728240158,-411.29391854,9.863e-05,2]
[344705942,1733728240168,-500.0,9.863e-05,2]
[344705943,1733728240177,-500.0,9.863e-05,2]
[344705944,1733728240187,-500.0,9.863e-05,2]
[344705945,1733728240200,-500.0,9.863e-05,2]
[344705946,1733728240209,-500.0,9.863e-05,2]
[344705947,1733728240219,-500.0,9.863e-05,2]
[344705948,1733728240229,-500.0,9.863e-05,2]
[344705949,1733728240239,-327.69,9.863e-05,2]
[344705950,1733728240249,-434.52,9.863e-05,2]
[344705951,1733728240258,-500.0,9.863e-05,2]
[344705952,1733728240268,-500.0,9.863e-05,2]
[344705953,1733728240277,-500.0,9.863e-05,2]
[344705954,1733728240290,-423.19,9.863e-05,2]
[344705955,1733728240306,-2416.8081,9.895e-05,2]
[344705956,1733728240316,-2630.7433,9.899e-05,2]
[344705957,1733728240326,-255.0,9.9e-05,3]
[344705958,1733728240336,-200.0,9.913e-05,2]
[344705959,1733728240345,-500.0,9.924e-05,2]
[344705960,1733728240355,-567.0,9.939e-05,2]
[344705962,1733728240365,-1262.0,9.939e-05,2]
[344705963,1733728240375,-631.229,9.939e-05,2]
[344705964,1733728240384,-2005.0,9.939e-05,2]
[344705965,1733728240394,-563.0,9.939e-05,2]
[344705966,1733728240403,-1894.0,9.939e-05,2]
[344705967,1733728240413,-1253.0,9.939e-05,2]
[344705968,1733728240423,-3762.0,9.939e-05,2]
[344705969,1733728240433,-817.0,9.939e-05,2]
[344705970,1733728240443,-3531.0,9.939e-05,2]
[344705971,1733728240452,-974.0,9.939e-05,2]
[344705972,1733728240462,-535.0,9.939e-05,2]
[344705973,1733728240471,-150.0,9.939e-05,2]
[344705974,1733728240481,-13721.0,9.939e-05,2]
[344705975,1733728240490,-5966.0,9.939e-05,2]
[344705976,1733728240499,-1167.0,9.939e-05,2]
[344705977,1733728240509,-880.65,9.939e-05,2]
[344705978,1733728240519,-3743.008,9.943e-05,2]
[344705979,1733728240529,-224.822,9.943e-05,2]
[344705980,1733728240539,-500.0,9.958e-05,2]
[344705981,1733728240550,-500.0,9.973e-05,2]
[344705982,1733728240560,-580.00703193,9.973e-05,2]
[344705983,1733728240569,-8592.4372706,9.988e-05,2]
[344705984,1733728240579,-435.74,9.989e-05,2]
[344705985,1733728240588,-8792.4728472,9.993e-05,2]
[344705986,1733728240598,-8992.5084239,9.993e-05,2]
[344705987,1733728240608,-150.0,9.995e-05,2]
[344705988,1733728240620,-35983.74779021,9.995e-05,2]
[344705989,1733728240630,-500.0,9.996e-05,2]
[344705990,1733728240640,-500.0,9.997e-05,2]
[344705991,1733728240650,-224.7774721,9.997e-05,2]
[344705992,1733728240660,-500.0,9.997e-05,2]
[344705993,1733728240669,-500.0,9.997e-05,2]
[344705994,1733728240679,-500.0,9.997e-05,2]
[344705995,1733728240689,-500.0,9.997e-05,2]
[344705996,1733728240698,-500.0,9.997e-05,2]
[344705997,1733728240708,-500.0,9.997e-05,2]
[344705998,1733728240717,-500.0,9.997e-05,2]
[344705999,1733728240727,-500.0,9.997e-05,2]
[344706000,1733728240736,-443.23555864,9.997e-05,2]
[344706001,1733728240746,-500.0,9.997e-05,2]
[344706002,1733728240756,-500.0,9.997e-05,2]
[344706003,1733728240766,-500.0,9.997e-05,2]
[344706004,1733728240775,-500.0,9.997e-05,2]
[344706005,1733728240785,-606.94,9.997e-05,2]
[344706006,1733728240796,-500.0,9.997e-05,2]
[344706007,1733728240806,-500.0,9.997e-05,2]
[344706008,1733728240816,-500.0,9.997e-05,2]
[344706009,1733728240826,-209.03,9.997e-05,2]
[344706010,1733728240835,-500.0,9.997e-05,2]
[344706011,1733728240845,-500.0,9.997e-05,2]
[344706012,1733728240855,-500.0,9.997e-05,2]
[344706013,1733728240864,-500.0,9.997e-05,2]
[344706014,1733728240874,-500.0,9.997e-05,2]
[344706015,1733728240883,-500.0,9.997e-05,2]
[344706016,1733728240893,-500.0,9.997e-05,2]
[344706017,1733728240903,-500.0,9.997e-05,2]
[344706018,1733728240913,-500.0,9.997e-05,2]
[344706019,1733728240922,-500.0,9.997e-05,2]
[344706020,1733728240931,-500.0,9.997e-05,2]
[344706021,1733728240941,-500.0,9.997e-05,2]
[344706022,1733728240951,-500.0,9.997e-05,2]
[344706023,1733728240962,-424.24,9.997e-05,2]
[344706024,1733728240971,-500.0,9.997e-05,2]
[344706025,1733728240981,-165.38468223,9.997e-05,2]
[344706026,1733728240990,-500.0,9.997e-05,2]
[344706027,1733728240999,-500.0,9.997e-05,2]
[344706028,1733728241008,-500.0,9.997e-05,2]
[344706029,1733728241018,-500.0,9.997e-05,2]
[344706030,1733728241027,-500.0,9.997e-05,2]
[344706031,1733728241037,-500.78056128,9.997e-05,2]
[344706032,1733728241047,-500.0,9.997e-05,2]
[344706033,1733728241057,-502.95654999,9.997e-05,2]
[344706034,1733728241067,-153.0,9.998e-05,2]
[344706035,1733728241076,-153.0,9.998e-05,2]
[344706036,1733728241085,-153.0,9.998e-05,2]
[344706037,1733728241095,-153.0,9.998e-05,2]
[344706038,1733728241104,-153.0,9.998e-05,2]
[344706039,1733728241114,-153.0,9.998e-05,2]
[344706040,1733728241124,-153.0,9.998e-05,2]
[344706041,1733728241133,-153.0,9.998e-05,2]
[344706042,1733728241142,-153.0,9.998e-05,2]
[344706043,1733728241152,-153.0,9.998e-05,2]
[344706044,1733728241162,-153.0,9.998e-05,2]
[344706045,1733728241171,-153.0,9.998e-05,2]
[344706046,1733728241181,-19.80339348,9.998e-05,2]
[344706047,1733728241196,-133.19660652,9.998e-05,2]
[344706048,1733728241207,-153.0,9.998e-05,2]
[344706049,1733728241218,-153.0,9.998e-05,2]
[344706050,1733728241228,-153.0,9.998e-05,2]
[344706051,1733728241238,-153.0,9.998e-05,2]
[344706052,1733728241249,-153.0,9.998e-05,2]
[344706053,1733728241259,-153.0,9.998e-05,2]
[344706054,1733728241269,-153.0,9.998e-05,2]
[344706055,1733728241279,-153.0,9.998e-05,2]
[344706056,1733728241289,-153.0,9.998e-05,2]
[344706057,1733728241302,-153.0,9.998e-05,2]
[344706058,1733728241312,-153.0,9.998e-05,2]
[344706059,1733728241321,-153.0,9.998e-05,2]
[344706060,1733728241331,-153.0,9.998e-05,2]
[344706061,1733728241341,-153.0,9.998e-05,2]
[344706062,1733728241351,-153.0,9.998e-05,2]
[344706063,1733728241361,-153.0,9.998e-05,2]
[344706064,1733728241372,-153.0,9.998e-05,2]
[344706065,1733728241382,-153.0,9.998e-05,2]
[344706066,1733728241392,-153.0,9.998e-05,2]
[344706067,1733728241401,-153.0,9.998e-05,2]
[344706068,1733728241411,-153.0,9.998e-05,2]
[344706069,1733728241421,-153.0,9.998e-05,2]
[344706070,1733728241430,-153.0,9.998e-05,2]
[344706071,1733728241440,-153.0,9.998e-05,2]
[344706072,1733728241449,-153.0,9.998e-05,2]
[344706073,1733728241459,-153.0,9.998e-05,2]
[344706074,1733728241468,-153.0,9.998e-05,2]
[344706075,1733728241477,-153.0,9.998e-05,2]
[344706076,1733728241486,-153.0,9.998e-05,2]
[344706077,1733728241495,-153.0,9.998e-05,2]
[344706078,1733728241504,-153.0,9.998e-05,2]
[344706079,1733728241513,-153.0,9.998e-05,2]
[344706080,1733728241522,-153.0,9.998e-05,2]
[344706081,1733728241532,-504.3923909,9.998e-05,2]
[344706082,1733728241541,-500.0,9.998e-05,2]
[344706083,1733728241553,-500.0,9.998e-05,2]
[344706084,1733728241563,-500.0,9.998e-05,2]
[344706085,1733728241572,-500.0,9.998e-05,2]
[344706086,1733728241582,-500.0,9.998e-05,2]
[344706087,1733728241591,-500.0,9.998e-05,2]
[344706088,1733728241602,-500.0,9.998e-05,2]
[344706089,1733728241611,-500.0,9.998e-05,2]
[344706090,1733728241620,-207.48568206,9.998e-05,2]
[344706091,1733728241629,-500.0,9.998e-05,2]
[344706092,1733728241638,-500.0,9.998e-05,2]
[344706093,1733728241647,-500.0,9.998e-05,2]
[344706094,1733728241657,-500.0,9.998e-05,2]
[344706095,1733728241666,-215.24,9.998e-05,2]
[344706096,1733728241676,-500.0,9.998e-05,2]
[344706097,1733728241686,-500.0,9.998e-05,2]
[344706098,1733728241695,-500.0,9.998e-05,2]
[344706099,1733728241704,-444.02,9.998e-05,2]
[344706100,1733728241713,-595.4,9.998e-05,2]
[344706101,1733728241727,-500.0,9.998e-05,2]
[344706102,1733728241736,-500.0,9.998e-05,2]
[344706103,1733728241745,-500.0,9.998e-05,2]
[344706104,1733728241755,-500.0,9.998e-05,2]
[344706105,1733728241764,-500.0,9.998e-05,2]
[344706106,1733728241773,-500.0,9.998e-05,2]
[344706107,1733728241783,-500.0,9.998e-05,2]
[344706108,1733728241794,-500.0,9.998e-05,2]
[344706109,1733728241804,-500.0,9.998e-05,2]
[344706110,1733728241813,-705.66,9.998e-05,2]
[344706111,1733728241823,-500.0,9.998e-05,2]
[344706112,1733728241832,-500.0,9.998e-05,2]
[344706113,1733728241842,-500.0,9.998e-05,2]
[344706114,1733728241852,-500.0,9.998e-05,2]
[344706115,1733728241863,-500.0,9.998e-05,2]
[344706116,1733728241872,-500.0,9.998e-05,2]
[344706117,1733728241881,-500.0,9.998e-05,2]
[344706118,1733728241891,-500.0,9.998e-05,2]
[344706119,1733728241900,-500.0,9.998e-05,2]
[344706120,1733728241909,-20.60532052,9.998e-05,2]
[344706122,1733728242929,-479.39467948,9.998e-05,2]
[344706123,1733728242939,-20.62532052,9.998e-05,2]
[344706124,1733728242952,-479.37467948,9.998e-05,2]
[344706125,1733728242961,-82.7320567,9.998e-05,2]
[344706126,1733728243018,-417.2679433,9.998e-05,2]
[344706127,1733728243027,-153.0,9.998e-05,2]
[344706128,1733728243037,-153.0,9.998e-05,2]
[344706129,1733728243049,-153.0,9.998e-05,2]
[344706130,1733728243060,-153.0,9.998e-05,2]
[344706131,1733728243070,-153.0,9.998e-05,2]
[344706132,1733728243081,-153.0,9.998e-05,2]
[344706133,1733728243091,-153.0,9.998e-05,2]
[344706134,1733728243101,-153.0,9.998e-05,2]
[344706135,1733728243111,-153.0,9.998e-05,2]
[344706136,1733728243120,-153.0,9.998e-05,2]
[344706137,1733728243129,-153.0,9.998e-05,2]
[344706138,1733728243139,-153.0,9.998e-05,2]
[344706139,1733728243148,-153.0,9.998e-05,2]
[344706140,1733728243158,-153.0,9.998e-05,2]
[344706141,1733728243167,-153.0,9.998e-05,2]
[344706142,1733728243176,-153.0,9.998e-05,2]
[344706143,1733728243186,-153.0,9.998e-05,2]
[344706144,1733728243196,-153.0,9.998e-05,2]
[344706145,1733728243206,-153.0,9.998e-05,2]
[344706146,1733728243219,-153.0,9.998e-05,2]
[344706147,1733728243228,-153.0,9.998e-05,2]
[344706148,1733728243238,-153.0,9.998e-05,2]
[344706149,1733728243247,-153.0,9.998e-05,2]
[344706150,1733728243258,-153.0,9.998e-05,2]
[344706151,1733728243268,-153.0,9.998e-05,2]
[344706152,1733728243277,-153.0,9.998e-05,2]
[344706153,1733728243287,-153.0,9.998e-05,2]
[344706154,1733728243299,-153.0,9.998e-05,2]
[344706155,1733728243309,-153.0,9.998e-05,2]
[344706156,1733728243318,-153.0,9.998e-05,2]
[344706157,1733728243327,-153.0,9.998e-05,2]
[344706158,1733728243337,-153.0,9.998e-05,2]
[344706159,1733728243347,-153.0,9.998e-05,2]
[344706160,1733728243356,-153.0,9.998e-05,2]
[344706161,1733728243365,-153.0,9.998e-05,2]
[344706162,1733728243375,-153.0,9.998e-05,2]
[344706163,1733728243384,-153.0,9.998e-05,2]
[344706164,1733728243393,-153.0,9.998e-05,2]
[344706165,1733728243402,-153.0,9.998e-05,2]
[344706166,1733728243411,-11104.61126231,9.999e-05,2]
[344706167,1733728243423,-1690.83109118,9.999e-05,2]
[344706168,1733728243434,-5989.33197804,9.999e-05,2]
[344706169,1733728243445,-489.510012,9.999e-05,2]
[344706170,1733728243456,-10725.71565647,9.999e-05,2]
[344706171,1733728243465,-500.0,9.999e-05,2]
[344706172,1733728243475,-500.0,9.999e-05,2]
[344706173,1733728243485,-308.91,9.999e-05,2]
[344706174,1733728243494,-500.0,9.999e-05,2]
[344706175,1733728243503,-500.0,9.999e-05,2]
[344706176,1733728243513,-500.0,9.999e-05,2]
[344706177,1733728243522,-500.0,9.999e-05,2]
[344706178,1733728243531,-500.0,9.999e-05,2]
[344706179,1733728243540,-500.0,9.999e-05,2]
[344706180,1733728243551,-500.0,9.999e-05,2]
[344706181,1733728243561,-500.0,9.999e-05,2]
[344706182,1733728243570,-500.0,9.999e-05,2]
[344706183,1733728243579,-647.57,9.999e-05,2]
[344706184,1733728243588,-262.34,9.999e-05,2]
[344706185,1733728243598,-500.0,9.999e-05,2]
[344706186,1733728243607,-500.0,9.999e-05,2]
[344706187,1733728243616,-192.38,9.999e-05,2]
[344706188,1733728243625,-1195.56,9.999e-05,2]
[344706189,1733728243635,-500.0,9.999e-05,2]
[344706190,1733728243644,-500.0,9.999e-05,2]
[344706191,1733728243653,-500.0,9.999e-05,2]
[344706192,1733728243662,-500.0,9.999e-05,2]
[344706193,1733728243672,-500.0,9.999e-05,2]
[344706194,1733728243681,-500.0,9.999e-05,2]
[344706196,1733728243691,-500.0,9.999e-05,2]
[344706197,1733728243700,-500.0,9.999e-05,2]
[344706199,1733728243709,-377.28,9.999e-05,2]
[344706200,1733728243718,-500.0,9.999e-05,2]
[344706201,1733728243727,-316.34,9.999e-05,2]
[344706202,1733728243736,-500.0,9.999e-05,2]
[344706204,1733728243746,-500.0,9.999e-05,2]
[344706205,1733728243755,-500.0,9.999e-05,2]
[344706206,1733728243764,-500.0,9.999e-05,2]
[344706207,1733728243773,-299.53,9.999e-05,2]
[344706208,1733728243783,-500.0,9.999e-05,2]
[344706209,1733728243792,-500.0,9.999e-05,2]
[344706210,1733728243807,-500.0,9.999e-05,2]
[344706211,1733728243817,-341.17,9.999e-05,2]
[344706212,1733728243826,-500.0,9.999e-05,2]
[344706213,1733728243836,-500.0,9.999e-05,2]
[344706214,1733728243845,-321.46,9.999e-05,2]
[344706215,1733728243855,-500.0,9.999e-05,2]
[344706216,1733728243865,-500.0,9.999e-05,2]
[344706217,1733728243875,-500.0,9.999e-05,2]
[344706218,1733728243885,-500.0,9.999e-05,2]
[344706219,1733728243894,-500.0,9.999e-05,2]
[344706220,1733728243903,-500.0,9.999e-05,2]
[344706221,1733728243913,-177.35468232,9.999e-05,2]
[344706222,1733728243922,-500.0,9.999e-05,2]
[344706223,1733728243932,-500.0,9.999e-05,2]
[344706224,1733728243942,-500.0,9.999e-05,2]
[344706226,1733728243952,-500.0,9.999e-05,2]
[344706228,1733728243962,-500.0,9.999e-05,2]
[344706229,1733728244165,-357.15926924,9.999e-05,2]
[344706230,1733728244175,-500.0,9.999e-05,2]
[344706231,1733728244186,-500.0,9.999e-05,2]
[344706232,1733728244196,-500.0,9.999e-05,2]
[344706233,1733728244208,-500.0,9.999e-05,2]
[344706234,1733728244218,-500.0,9.999e-05,2]
[344706235,1733728244228,-500.0,9.999e-05,2]